[Event "VII Open Internacional Quart de Poblet"]
[Site "Quart de Poblet, Spain"]
[Date "2019.08.08"]
[Round "5.2"]
[White "Gavarrete, Nahun"]
[Black "Chernikov, Vladimir"]
[Result "1-0"]
[TimeControl "90m +30s por jugada"]
[WhiteFideId "8400709"]
[BlackFideId "14112914"]
[WhiteElo "2349"]
[BlackElo "2315"]

1. g3 {[%clk 01:22:57]} g6 {[%clk 01:29:27]} {[%emt 00:01:35]} 2. Bg2 {[%clk
01:23:14]} {[%emt 00:00:10]} Bg7 {[%clk 01:29:55]} {[%emt 00:00:10]} 3. Nf3
{[%clk 01:23:22]} {[%emt 00:00:15]} b6 {[%clk 01:29:54]} {[%emt 00:00:32]} 4.
O-O {[%clk 01:23:20]} {[%emt 00:00:30]} Bb7 {[%clk 01:30:20]} {[%emt 00:00:38]}
5. c4 {[%clk 01:23:40]} c5 {[%clk 01:30:29]} {[%emt 00:00:08]} 6. Nc3 {[%clk
01:22:35]} {[%emt 00:01:24]} Nf6 {[%clk 01:29:56]} {[%emt 00:01:03]} 7. d4
{[%clk 01:09:59]} {[%emt 00:13:06]} cxd4 {[%clk 01:29:31]} {[%emt 00:00:58]} 8.
Qxd4 {[%clk 01:10:20]} {[%emt 00:00:06]} O-O {[%clk 01:29:25]} {[%emt
00:00:42]} 9. Qh4 {[%clk 01:10:40]} {[%emt 00:00:04]} Qc8 {[%clk 01:18:59]}
{[%emt 00:10:58]} 10. Nd5 {[%clk 01:06:42]} {[%emt 00:04:27]} Bxd5 {[%clk
01:11:35]} {[%emt 00:07:54]} 11. cxd5 {[%clk 01:07:09]} {[%emt 00:00:04]} d6
{[%clk 01:09:52]} {[%emt 00:02:13]} 12. Bg5 {[%clk 01:02:51]} {[%emt 00:04:46]}
Qc2 {[%clk 01:05:38]} {[%emt 00:04:43]} 13. a4 {[%clk 00:46:34]} {[%emt
00:16:47]} Nbd7 {[%clk 00:55:35]} {[%emt 00:10:57]} 14. Nd4 {[%clk 00:43:12]}
{[%emt 00:03:29]} Qxb2 {[%clk 00:54:21]} {[%emt 00:01:43]} 15. Rfb1 {[%clk
00:29:13]} {[%emt 00:14:29]} Qc3 {[%clk 00:54:05]} {[%emt 00:00:46]} 16. Nc6
{[%clk 00:28:00]} {[%emt 00:01:42]} Rfe8 {[%clk 00:50:50]} {[%emt 00:03:46]} 17.
Be3 {[%clk 00:18:09]} {[%emt 00:10:22]} Qc2 {[%clk 00:42:21]} {[%emt 00:08:59]}
18. Kf1 {[%clk 00:13:27]} {[%emt 00:05:14]} Qf5 {[%clk 00:36:41]} {[%emt
00:06:07]} 19. Bf3 {[%clk 00:09:15]} {[%emt 00:05:01]} Nxd5 {[%clk 00:27:45]}
{[%emt 00:09:08]} 20. Bd4 {[%clk 00:07:54]} {[%emt 00:01:50]} g5 {[%clk
00:26:56]} {[%emt 00:01:22]} 21. Qe4 {[%clk 00:05:43]} {[%emt 00:02:38]} Qxe4
{[%clk 00:26:03]} {[%emt 00:01:26]} 22. Bxe4 {[%clk 00:06:11]} {[%emt
00:00:04]} Bxd4 {[%clk 00:25:39]} {[%emt 00:00:49]} 23. Nxd4 {[%clk 00:06:26]}
{[%emt 00:00:39]} N7f6 {[%clk 00:24:41]} {[%emt 00:01:04]} 24. Bxd5 {[%clk
00:06:49]} {[%emt 00:00:11]} Nxd5 {[%clk 00:25:08]} 25. Rb5 {[%clk 00:07:12]}
{[%emt 00:00:09]} e6 {[%clk 00:24:33]} {[%emt 00:01:04]} 26. e4 {[%clk
00:07:21]} {[%emt 00:00:18]} a6 {[%clk 00:24:43]} {[%emt 00:00:21]} 27. Rb3
{[%clk 00:07:33]} {[%emt 00:00:18]} Nf6 {[%clk 00:25:03]} {[%emt 00:00:14]} 28.
Rxb6 {[%clk 00:07:34]} {[%emt 00:00:24]} Nxe4 {[%clk 00:25:25]} {[%emt
00:00:12]} 29. Rc1 {[%clk 00:07:05]} {[%emt 00:01:02]} Reb8 {[%clk 00:24:00]}
{[%emt 00:01:49]} 30. a5 {[%clk 00:07:25]} {[%emt 00:00:16]} Rxb6 {[%clk
00:14:38]} {[%emt 00:09:47]} 31. axb6 {[%clk 00:07:53]} {[%emt 00:00:06]} Rb8
{[%clk 00:14:45]} {[%emt 00:00:19]} 32. Rc6 {[%clk 00:08:02]} {[%emt 00:00:36]}
Nf6 {[%clk 00:11:58]} {[%emt 00:03:01]} 33. Rxd6 {[%clk 00:07:49]} {[%emt
00:00:44]} Nd5 {[%clk 00:12:06]} {[%emt 00:00:33]} 34. b7 {[%clk 00:07:58]}
{[%emt 00:00:13]} Rxb7 {[%clk 00:12:07]} {[%emt 00:00:25]} 35. Rxa6 {[%clk
00:08:26]} {[%emt 00:00:08]} g4 {[%clk 00:11:26]} {[%emt 00:01:05]} 36. Nc6
{[%clk 00:04:47]} {[%emt 00:04:10]} Rb1+ {[%clk 00:11:14]} {[%emt 00:00:41]} 37.
Ke2 {[%clk 00:04:08]} {[%emt 00:01:08]} Rb2+ {[%clk 00:10:02]} {[%emt
00:01:49]} 38. Ke1 {[%clk 00:04:36]} Nb4 {[%clk 00:06:56]} {[%emt 00:03:34]} 39.
Nxb4 {[%clk 00:04:08]} {[%emt 00:01:28]} Rxb4 {[%clk 00:07:19]} 40. Kf1 {[%clk
00:04:20]} {[%emt 00:00:03]} Kg7 {[%clk 00:07:07]} {[%emt 00:00:32]} 41. Ra7
{[%clk 00:04:49]} {[%emt 00:00:24]} Kg6 {[%clk 00:07:16]} {[%emt 00:00:03]} 42.
Rc7 {[%clk 00:05:17]} h5 {[%clk 00:07:18]} {[%emt 00:00:32]} 43. Rc8 {[%clk
00:05:21]} {[%emt 00:00:20]} h4 {[%clk 00:06:29]} {[%emt 00:01:16]} 44. gxh4
{[%clk 00:05:43]} {[%emt 00:00:11]} Rb3 {[%clk 00:06:48]} {[%emt 00:00:12]} 45.
Rg8+ {[%clk 00:05:50]} {[%emt 00:00:19]} Kf5 {[%clk 00:06:51]} {[%emt
00:00:27]} 46. Kg2 {[%clk 00:03:03]} {[%emt 00:03:29]} Rh3 {[%clk 00:05:54]}
{[%emt 00:01:15]} 47. Rh8 {[%clk 00:03:07]} {[%emt 00:00:25]} Kf4 {[%clk
00:05:33]} {[%emt 00:00:51]} 48. Rh6 {[%clk 00:03:10]} {[%emt 00:00:40]} Kf5
{[%clk 00:05:27]} {[%emt 00:00:26]} 49. Rh8 {[%clk 00:03:19]} {[%emt 00:00:21]}
e5 {[%clk 00:04:56]} {[%emt 00:00:59]} 50. Rh5+ {[%clk 00:03:13]} {[%emt
00:00:38]} Kf4 {[%clk 00:04:49]} {[%emt 00:00:36]} 51. Rh7 {[%clk 00:03:19]}
{[%emt 00:00:46]} f5 {[%clk 00:05:06]} 52. Rh8 {[%clk 00:02:05]} {[%emt
00:01:34]} e4 {[%clk 00:05:04]} {[%emt 00:00:37]} 53. Rh7 {[%clk 00:01:54]}
{[%emt 00:01:00]} e3 {[%clk 00:04:55]} {[%emt 00:00:15]} 54. fxe3+ {[%clk
00:02:20]} {[%emt 00:00:16]} Rxe3 {[%clk 00:05:20]} {[%emt 00:00:18]} 55. Ra7
{[%clk 00:02:32]} Re2+ {[%clk 00:05:12]} {[%emt 00:00:31]} 56. Kg1 {[%clk
00:02:45]} {[%emt 00:00:17]} Re3 {[%clk 00:02:44]} {[%emt 00:03:16]} 57. Kg2
{[%clk 00:02:51]} {[%emt 00:00:05]} Rb3 {[%clk 00:03:00]} {[%emt 00:00:18]} 58.
Ra5 {[%clk 00:01:27]} {[%emt 00:01:50]} Rb2+ {[%clk 00:02:07]} {[%emt
00:01:24]} 59. Kg1 {[%clk 00:01:47]} {[%emt 00:00:09]} Rd2 {[%clk 00:01:27]}
{[%emt 00:01:09]} 60. Ra4+ {[%clk 00:01:36]} {[%emt 00:00:42]} Kf3 {[%clk
00:01:21]} {[%emt 00:00:36]} 61. Ra3+ {[%clk 00:01:57]} {[%emt 00:00:09]} Ke2
{[%clk 00:01:32]} {[%emt 00:00:18]} 62. Ra4 {[%clk 00:01:20]} {[%emt 00:01:08]}
Rd3 {[%clk 00:01:26]} {[%emt 00:00:36]} 63. Kg2 {[%clk 00:01:22]} {[%emt
00:00:30]} Kd2 {[%clk 00:00:45]} {[%emt 00:01:09]} 64. Rf4 {[%clk 00:01:02]}
{[%emt 00:00:50]} Rd5 {[%clk 00:01:02]} {[%emt 00:00:22]} 65. h5 {[%clk
00:01:11]} {[%emt 00:00:19]} Ke3 {[%clk 00:01:20]} {[%emt 00:00:06]} 66. Kg3
{[%clk 00:01:22]} {[%emt 00:00:19]} Ke2 {[%clk 00:00:54]} {[%emt 00:00:59]} 67.
Rf2+ {[%clk 00:00:59]} {[%emt 00:01:03]} Ke3 {[%clk 00:01:14]} 68. h6 {[%clk
00:00:47]} {[%emt 00:00:39]} Rd6 {[%clk 00:01:02]} {[%emt 00:00:42]} 69. Rxf5
{[%clk 00:01:01]} {[%emt 00:00:16]} Rxh6 {[%clk 00:01:28]} {[%emt 00:00:08]} 70.
Re5+ {[%clk 00:01:21]} {[%emt 00:00:14]} Kd4 {[%clk 00:01:13]} {[%emt
00:00:38]} 71. Re2 {[%clk 00:01:21]} {[%emt 00:00:30]} Kd3 {[%clk 00:01:27]}
{[%emt 00:00:41]} 72. Ra2 {[%clk 00:01:40]} {[%emt 00:00:07]} Ke4 {[%clk
00:00:47]} {[%emt 00:01:04]} 73. Kxg4 {[%clk 00:01:11]} {[%emt 00:00:44]} Ke5
{[%clk 00:00:51]} {[%emt 00:00:38]} 74. Kg5 {[%clk 00:00:55]} {[%emt 00:00:33]}
Rh3 {[%clk 00:00:45]} {[%emt 00:01:00]} 75. Re2+ {[%clk 00:01:19]} {[%emt
00:00:03]} Kd6 {[%clk 00:01:08]} 76. Kg4 {[%clk 00:01:44]} Rh6 {[%clk
00:01:21]} {[%emt 00:00:08]} 77. h4 {[%clk 00:01:59]} {[%emt 00:00:17]} Re6
{[%clk 00:01:44]} {[%emt 00:00:05]} 78. Rf2 {[%clk 00:02:04]} {[%emt 00:00:26]}
Ke7 {[%clk 00:01:46]} {[%emt 00:00:28]} 79. Kg5 {[%clk 00:02:24]} {[%emt
00:00:14]} Re5+ {[%clk 00:02:01]} {[%emt 00:00:19]} 80. Kg6 {[%clk 00:02:42]}
{[%emt 00:00:04]} Re6+ {[%clk 00:02:28]} {[%emt 00:00:17]} 81. Kg7 {[%clk
00:02:55]} {[%emt 00:00:16]} Re5 {[%clk 00:02:55]} 82. Rh2 {[%clk 00:01:05]}
{[%emt 00:02:09]} Re1 {[%clk 00:03:04]} {[%emt 00:00:21]} 83. Rg2 {[%clk
00:01:00]} {[%emt 00:00:35]} Re5 {[%clk 00:03:32]} {[%emt 00:00:32]} 84. Rg5
{[%clk 00:01:22]} Re2 {[%clk 00:02:44]} {[%emt 00:00:56]} 85. h5 {[%clk
00:01:50]} {[%emt 00:00:11]} Ra2 {[%clk 00:01:01]} {[%emt 00:02:36]} 86. h6
{[%clk 00:02:09]} {[%emt 00:00:07]} Ke6 {[%clk 00:01:24]} 87. h7 {[%clk
00:02:18]} {[%emt 00:00:03]} Ra7+ {[%clk 00:01:52]} {[%emt 00:00:04]} 88. Kh6
{[%clk 00:02:35]} {[%emt 00:00:12]} Ra8 {[%clk 00:02:11]} {[%emt 00:00:18]} 89.
Rg8 {[%clk 00:02:54]} {[%emt 00:00:03]} 1-0

[Event "VII Open Internacional Quart de Poblet"]
[Site "Quart de Poblet, Spain"]
[Date "2019.08.08"]
[Round "5.3"]
[White "Gonzalez Aguirre, Luis"]
[Black "Castella Garcia, Fausto"]
[Result "0-1"]
[TimeControl "90m +30s por jugada"]
[WhiteFideId "2202000"]
[BlackFideId "3501922"]
[WhiteElo "2112"]
[BlackElo "2315"]

1. Nf3 {[%clk 01:30:56]} {[%emt 00:00:12]} g6 {[%clk 01:16:56]} {[%emt
00:14:07]} 2. d4 {[%clk 01:30:06]} {[%emt 00:01:12]} Nf6 {[%clk 01:15:29]}
{[%emt 00:02:04]} 3. g3 {[%clk 01:29:35]} {[%emt 00:00:55]} Bg7 {[%clk
01:15:47]} {[%emt 00:00:13]} 4. Bg2 {[%clk 01:29:59]} {[%emt 00:00:10]} c5
{[%clk 01:15:05]} {[%emt 00:01:07]} 5. c4 {[%clk 01:28:31]} {[%emt 00:01:54]}
cxd4 {[%clk 01:15:27]} {[%emt 00:00:23]} 6. Nxd4 {[%clk 01:28:26]} {[%emt
00:00:21]} Nc6 {[%clk 01:15:02]} {[%emt 00:00:56]} 7. Nc3 {[%clk 01:28:17]}
{[%emt 00:00:37]} O-O {[%clk 01:15:24]} {[%emt 00:00:36]} 8. O-O {[%clk
01:28:42]} {[%emt 00:00:03]} Qa5 {[%clk 01:15:41]} 9. e3 {[%clk 01:22:13]}
{[%emt 00:06:57]} d6 {[%clk 01:03:53]} {[%emt 00:12:07]} 10. h3 {[%emt
00:02:11]} Bd7 {[%clk 01:02:39]} {[%emt 00:00:25]} 11. Bd2 {[%emt 00:01:16]}
Qc5 {[%emt 00:16:01]} 12. Nxc6 {[%clk 01:11:30]} {[%emt 00:07:43]} bxc6 {[%emt
00:06:50]} 13. b3 {[%clk 01:10:03]} {[%emt 00:00:56]} Rac8 {[%clk 00:39:34]}
{[%emt 00:05:16]} 14. Rc1 {[%clk 01:05:34]} Qb6 {[%clk 00:36:29]} {[%emt
00:08:26]} 15. c5 {[%clk 01:00:12]} Qa6 {[%clk 00:28:28]} {[%emt 00:14:23]} 16.
cxd6 {[%clk 00:59:40]} exd6 {[%clk 00:28:55]} {[%emt 00:01:40]} 17. e4 {[%clk
00:54:50]} Rfd8 {[%clk 00:24:08]} {[%emt 00:10:04]} 18. Be3 {[%clk 00:48:08]}
c5 {[%clk 00:19:50]} {[%emt 00:11:57]} 19. Qd2 {[%clk 00:44:13]} Bc6 {[%clk
00:17:19]} {[%emt 00:07:29]} 20. Rfd1 {[%clk 00:41:55]} Qb7 {[%clk 00:16:50]}
{[%emt 00:03:43]} 21. Qc2 {[%clk 00:37:27]} Rd7 {[%clk 00:15:06]} {[%emt
00:07:13]} 22. Rd2 {[%clk 00:33:16]} Re8 {[%clk 00:14:41]} {[%emt 00:05:35]} 23.
Rcd1 {[%clk 00:27:20]} Nxe4 {[%clk 00:08:01]} {[%emt 00:13:36]} 24. Nxe4 {[%clk
00:26:42]} Bxe4 {[%clk 00:08:29]} {[%emt 00:01:32]} 25. Bxe4 {[%clk 00:26:50]}
Rxe4 {[%clk 00:08:36]} {[%emt 00:00:22]} 26. Rxd6 {[%clk 00:24:25]} Rxd6 {[%clk
00:08:27]} {[%emt 00:03:35]} 27. Rxd6 {[%clk 00:24:54]} Bd4 {[%clk 00:06:42]}
{[%emt 00:02:25]} 28. Rd8+ {[%clk 00:17:45]} Kg7 {[%clk 00:07:04]} {[%emt
00:07:57]} 29. Qd2 {[%clk 00:16:15]} Bxe3 {[%clk 00:04:23]} {[%emt 00:04:51]}
30. fxe3 {[%clk 00:16:35]} Qe7 {[%clk 00:04:36]} {[%emt 00:00:27]} 31. Qd6
{[%clk 00:11:36]} Rxe3 {[%clk 00:03:59]} {[%emt 00:06:39]} 32. Qxe7 {[%clk
00:11:50]} Rxe7 {[%clk 00:04:27]} {[%emt 00:00:19]} 33. Rc8 {[%clk 00:09:55]}
Re2 {[%clk 00:03:54]} {[%emt 00:03:24]} 34. a4 {[%clk 00:10:04]} Re3 {[%clk
00:03:26]} {[%emt 00:01:19]} 35. Kf2 {[%clk 00:10:22]} Rxb3 {[%clk 00:02:58]}
{[%emt 00:01:15]} 36. Rxc5 {[%clk 00:10:49]} {[%emt 00:00:20]} Rb6 {[%clk
00:02:56]} {[%emt 00:00:09]} 37. Ra5 {[%clk 00:07:05]} {[%emt 00:04:15]} a6
{[%clk 00:03:20]} {[%emt 00:00:12]} 38. g4 {[%clk 00:07:20]} {[%emt 00:00:16]}
h6 {[%clk 00:03:15]} {[%emt 00:00:27]} 39. Ke3 {[%clk 00:04:53]} {[%emt
00:02:57]} Kf6 {[%clk 00:03:09]} {[%emt 00:00:36]} 40. h4 {[%clk 00:03:53]}
{[%emt 00:02:05]} Ke6 {[%clk 00:02:59]} {[%emt 00:00:05]} 41. Ke4 {[%clk
00:03:13]} {[%emt 00:01:12]} Kd6 {[%clk 00:02:05]} {[%emt 00:01:23]} 42. h5
{[%clk 00:02:41]} {[%emt 00:01:01]} Kc7 {[%clk 00:01:44]} {[%emt 00:00:51]} 43.
hxg6 {[%clk 00:02:49]} {[%emt 00:00:40]} fxg6 {[%clk 00:01:55]} {[%emt
00:00:03]} 44. Ke5 {[%clk 00:02:13]} {[%emt 00:01:05]} Rb4 {[%clk 00:01:20]}
{[%emt 00:01:02]} 45. g5 {[%clk 00:01:00]} {[%emt 00:01:47]} Kb6 {[%clk
00:00:44]} {[%emt 00:01:08]} 46. Rd5 {[%clk 00:01:29]} hxg5 {[%clk 00:00:54]}
{[%emt 00:00:21]} 47. a5+ {[%clk 00:00:33]} {[%emt 00:01:22]} Kc7 {[%clk
00:01:12]} {[%emt 00:00:16]} 48. Kf6 {[%clk 00:00:33]} {[%emt 00:00:35]} Rb5
{[%clk 00:01:27]} {[%emt 00:00:05]} 49. Rd2 {[%clk 00:00:34]} {[%emt 00:00:29]}
Rxa5 {[%clk 00:01:40]} {[%emt 00:00:19]} 50. Kxg6 {[%clk 00:01:03]} {[%emt
00:00:04]} Rb5 {[%emt 00:01:02]} 0-1

[Event "VII Open Internacional Quart de Poblet"]
[Site "Quart de Poblet, Spain"]
[Date "2019.08.08"]
[Round "5.4"]
[White "Sanchez Saez, Francisco"]
[Black "Navarro Diaz, Carles"]
[Result "1-0"]
[TimeControl "90m +30s por jugada"]
[WhiteFideId "2231743"]
[WhiteElo "2359"]
[BlackElo "2067"]

1. e4 {[%clk 01:30:57]} {[%emt 00:00:03]} c5 {[%clk 01:30:39]} {[%emt
00:00:03]} 2. d4 {[%clk 01:31:22]} {[%emt 00:00:04]} cxd4 {[%clk 01:30:33]}
{[%emt 00:00:33]} 3. c3 {[%clk 01:31:47]} {[%emt 00:00:13]} d3 {[%clk
01:29:00]} {[%emt 00:02:05]} 4. Bxd3 {[%clk 01:32:04]} {[%emt 00:00:05]} d6
{[%clk 01:27:40]} {[%emt 00:02:06]} 5. h3 {[%clk 01:32:03]} {[%emt 00:00:12]}
Nf6 {[%clk 01:27:13]} {[%emt 00:00:56]} 6. c4 {[%clk 01:32:26]} {[%emt
00:00:14]} e6 {[%clk 01:26:53]} {[%emt 00:00:45]} 7. Nc3 {[%clk 01:32:44]}
{[%emt 00:00:16]} Be7 {[%clk 01:26:19]} {[%emt 00:01:04]} 8. Nf3 {[%clk
01:32:55]} {[%emt 00:00:15]} O-O {[%clk 01:23:19]} {[%emt 00:03:29]} 9. Be3
{[%clk 01:32:02]} {[%emt 00:01:23]} Nbd7 {[%clk 01:21:17]} {[%emt 00:02:33]} 10.
O-O {[%clk 01:32:00]} {[%emt 00:00:31]} Nc5 {[%clk 01:18:57]} {[%emt 00:03:06]}
11. Bc2 {[%clk 01:31:52]} {[%emt 00:00:31]} a5 {[%clk 01:09:24]} {[%emt
00:09:56]} 12. a3 {[%clk 01:32:07]} {[%emt 00:00:15]} Bd7 {[%clk 01:07:51]}
{[%emt 00:02:02]} 13. b4 {[%clk 01:31:05]} {[%emt 00:01:31]} axb4 {[%clk
01:06:50]} {[%emt 00:01:32]} 14. axb4 {[%clk 01:31:28]} {[%emt 00:00:32]} Rxa1
{[%clk 01:06:51]} {[%emt 00:00:05]} 15. Qxa1 {[%clk 01:31:51]} {[%emt
00:00:11]} Na6 {[%clk 01:07:06]} {[%emt 00:00:08]} 16. b5 {[%clk 01:27:36]}
{[%emt 00:04:56]} Nb4 {[%clk 01:03:45]} {[%emt 00:03:42]} 17. Bb3 {[%clk
01:25:21]} {[%emt 00:02:46]} Qc7 {[%clk 00:55:10]} {[%emt 00:09:02]} 18. Rd1
{[%clk 01:19:57]} {[%emt 00:05:54]} Rc8 {[%clk 00:53:15]} {[%emt 00:02:25]} 19.
Qa7 {[%clk 01:11:55]} {[%emt 00:08:32]} d5 {[%clk 00:45:47]} {[%emt 00:08:23]}
20. e5 {[%clk 01:09:58]} {[%emt 00:02:03]} Ne8 {[%clk 00:40:53]} {[%emt
00:05:23]} 21. b6 {[%clk 00:55:53]} {[%emt 00:14:38]} Qd8 {[%clk 00:40:05]}
{[%emt 00:01:16]} 22. cxd5 {[%clk 00:51:06]} {[%emt 00:05:16]} Rxc3 {[%clk
00:26:31]} {[%emt 00:14:04]} 23. dxe6 {[%clk 00:51:11]} {[%emt 00:00:27]} Rxb3
{[%clk 00:26:26]} {[%emt 00:00:36]} 24. exd7 {[%clk 00:50:54]} {[%emt
00:00:44]} Nc7 {[%clk 00:25:01]} {[%emt 00:01:55]} 25. bxc7 {[%clk 00:50:10]}
{[%emt 00:01:27]} Qxc7 {[%clk 00:25:24]} {[%emt 00:00:09]} 26. Bb6 {[%emt
00:01:12]} 1-0

[Event "VII Open Internacional Quart de Poblet"]
[Site "Quart de Poblet, Spain"]
[Date "2019.08.08"]
[Round "5.5"]
[White "Kovacevic, Slobodan"]
[Black "Hernandez Lopez, Alberto"]
[Result "1-0"]
[TimeControl "90m +30s por jugada"]
[WhiteFideId "902152"]
[BlackFideId "24575208"]
[WhiteElo "2252"]
[BlackElo "2044"]

1. d4 {[%clk 01:16:51]} {[%emt 00:14:05]} Nf6 {[%clk 01:30:54]} {[%emt
00:00:38]} 2. Nf3 {[%clk 01:16:12]} {[%emt 00:00:38]} g6 {[%clk 01:31:17]}
{[%emt 00:00:19]} 3. Bg5 {[%clk 01:15:45]} {[%emt 00:00:47]} Bg7 {[%clk
01:31:44]} {[%emt 00:00:03]} 4. Nbd2 {[%clk 01:15:38]} {[%emt 00:00:34]} d5
{[%clk 01:32:08]} {[%emt 00:00:31]} 5. c3 {[%clk 01:15:32]} {[%emt 00:00:12]}
O-O {[%clk 01:32:25]} {[%emt 00:00:36]} 6. e3 {[%clk 01:15:21]} {[%emt
00:00:18]} Bf5 {[%clk 01:31:02]} {[%emt 00:02:02]} 7. Qb3 {[%clk 01:13:58]}
{[%emt 00:01:59]} Nbd7 {[%clk 01:28:38]} {[%emt 00:02:39]} 8. Be2 {[%clk
01:05:44]} {[%emt 00:08:53]} h6 {[%clk 01:16:00]} {[%emt 00:12:58]} 9. Bh4
{[%clk 01:02:28]} {[%emt 00:03:49]} Qc8 {[%clk 01:09:10]} {[%emt 00:07:18]} 10.
O-O {[%clk 01:00:49]} {[%emt 00:02:20]} c5 {[%clk 01:08:46]} {[%emt 00:00:43]}
11. c4 {[%clk 00:55:14]} {[%emt 00:06:05]} Be6 {[%clk 01:02:49]} {[%emt
00:06:27]} 12. Rac1 {[%clk 00:52:10]} {[%emt 00:03:34]} b6 {[%clk 01:02:49]}
{[%emt 00:00:31]} 13. Qa3 {[%clk 00:45:06]} {[%emt 00:07:31]} a5 {[%clk
00:49:00]} {[%emt 00:14:19]} 14. cxd5 {[%clk 00:37:13]} {[%emt 00:08:29]} Nxd5
{[%clk 00:45:01]} {[%emt 00:04:23]} 15. Bb5 {[%clk 00:29:59]} {[%emt 00:07:45]}
g5 {[%clk 00:42:39]} {[%emt 00:02:54]} 16. Bg3 {[%clk 00:25:31]} {[%emt
00:04:54]} Nb4 {[%clk 00:41:15]} {[%emt 00:01:58]} 17. Nc4 {[%clk 00:19:07]}
{[%emt 00:06:53]} Qb7 {[%clk 00:36:37]} {[%emt 00:05:05]} 18. Rfd1 {[%clk
00:16:28]} {[%emt 00:03:09]} g4 {[%clk 00:30:09]} {[%emt 00:06:58]} 19. Bxd7
{[%clk 00:09:28]} {[%emt 00:07:30]} Bxd7 {[%clk 00:24:06]} {[%emt 00:06:32]} 20.
Nfe5 {[%clk 00:09:52]} {[%emt 00:00:16]} Bc6 {[%clk 00:16:04]} {[%emt
00:08:25]} 21. Nxc6 {[%clk 00:09:29]} {[%emt 00:00:50]} Qxc6 {[%clk 00:15:50]}
{[%emt 00:00:47]} 22. dxc5 {[%clk 00:08:10]} {[%emt 00:01:45]} Qxc5 {[%clk
00:15:39]} {[%emt 00:01:11]} 23. Ne5 {[%clk 00:08:06]} {[%emt 00:00:05]} Qb5
{[%clk 00:15:28]} {[%emt 00:00:42]} 24. Nc4 {[%clk 00:07:03]} {[%emt 00:01:33]}
Rac8 {[%clk 00:14:22]} {[%emt 00:01:34]} 25. b3 {[%clk 00:07:19]} {[%emt
00:00:18]} Rfd8 {[%clk 00:14:30]} {[%emt 00:00:24]} 26. Rxd8+ {[%clk 00:06:43]}
{[%emt 00:01:03]} Rxd8 {[%clk 00:14:51]} {[%emt 00:00:09]} 27. Bc7 {[%clk
00:06:46]} {[%emt 00:00:33]} Rc8 {[%clk 00:13:16]} {[%emt 00:01:59]} 28. Bg3
{[%clk 00:04:25]} {[%emt 00:02:51]} Rd8 {[%clk 00:09:39]} {[%emt 00:04:04]} 29.
Bc7 {[%clk 00:03:46]} {[%emt 00:01:09]} Rc8 {[%clk 00:10:02]} {[%emt 00:00:32]}
30. Nxb6 {[%clk 00:03:40]} {[%emt 00:00:11]} Rxc7 {[%clk 00:09:56]} {[%emt
00:00:36]} 31. Rxc7 {[%clk 00:04:09]} {[%emt 00:00:21]} Qxb6 {[%clk 00:10:25]}
32. Rc8+ {[%clk 00:04:25]} {[%emt 00:00:03]} Kh7 {[%clk 00:10:19]} {[%emt
00:00:28]} 33. Qc1 {[%clk 00:04:50]} {[%emt 00:00:26]} Qe6 {[%clk 00:08:57]}
{[%emt 00:01:54]} 34. a3 {[%clk 00:04:06]} {[%emt 00:00:52]} Nd5 {[%clk
00:08:33]} {[%emt 00:00:54]} 35. Qc2+ {[%clk 00:04:19]} {[%emt 00:00:27]} f5
{[%clk 00:08:41]} {[%emt 00:00:11]} 36. Rc5 {[%clk 00:03:49]} {[%emt 00:01:04]}
Qe5 {[%clk 00:05:40]} {[%emt 00:03:28]} 37. g3 {[%clk 00:03:45]} {[%emt
00:00:39]} e6 {[%clk 00:05:32]} {[%emt 00:00:32]} 38. Rxa5 {[%clk 00:04:00]}
{[%emt 00:00:15]} Qa1+ {[%clk 00:05:31]} {[%emt 00:00:31]} 39. Kg2 {[%clk
00:04:27]} {[%emt 00:00:09]} h5 {[%clk 00:05:18]} {[%emt 00:00:38]} 40. Rxd5
{[%emt 00:00:36]} exd5 {[%clk 00:05:09]} {[%emt 00:00:58]} 41. Qxf5+ {[%clk
00:04:55]} Kh6 {[%clk 00:05:33]} 42. Qe6+ {[%clk 00:04:47]} {[%emt 00:00:24]}
Kh7 {[%clk 00:05:37]} {[%emt 00:00:23]} 43. Qxd5 {[%clk 00:05:13]} {[%emt
00:00:21]} Kg6 {[%clk 00:05:32]} {[%emt 00:00:24]} 44. a4 {[%clk 00:05:10]}
{[%emt 00:00:27]} Bc3 {[%clk 00:05:03]} {[%emt 00:01:01]} 45. Qe6+ {[%clk
00:05:01]} {[%emt 00:00:36]} Kg5 {[%clk 00:05:04]} {[%emt 00:00:33]} 46. h4+
{[%clk 00:04:24]} {[%emt 00:01:05]} gxh3+ {[%clk 00:05:30]} {[%emt 00:00:12]}
47. Qxh3 {[%clk 00:04:49]} {[%emt 00:00:04]} Qd1 {[%clk 00:05:29]} {[%emt
00:00:22]} 48. Qh4+ {[%clk 00:04:19]} {[%emt 00:00:59]} Kg6 {[%clk 00:05:21]}
{[%emt 00:00:38]} 49. Qe4+ {[%clk 00:04:44]} {[%emt 00:00:23]} Kg7 {[%clk
00:05:33]} {[%emt 00:00:15]} 50. Qe7+ {[%clk 00:04:02]} {[%emt 00:00:58]} Kg6
{[%clk 00:05:34]} {[%emt 00:00:29]} 51. Qe4+ {[%clk 00:03:46]} {[%emt
00:00:46]} Kg7 {[%clk 00:05:54]} {[%emt 00:00:12]} 52. a5 {[%clk 00:04:04]}
{[%emt 00:00:09]} Qd6 {[%clk 00:05:52]} {[%emt 00:00:40]} 53. Qb7+ {[%clk
00:04:25]} {[%emt 00:00:05]} Kg6 {[%clk 00:06:08]} {[%emt 00:00:26]} 54. a6
{[%clk 00:04:24]} {[%emt 00:00:16]} Be1 {[%clk 00:05:52]} {[%emt 00:00:46]} 55.
Qe4+ {[%clk 00:04:34]} {[%emt 00:00:40]} Kg7 {[%clk 00:06:10]} 56. Qd4+ {[%clk
00:04:52]} {[%emt 00:00:08]} 1-0